Cogmind - Beta 11.1 @@@ ROGUE MODE // 2022.06.10 @ 03:32:29 Player: Savant Result: Heading to fleet! Performance ------------- Evolutions (9) 4500 Regions Visited (31) 6200 Robots Destroyed (119) 595 Value Destroyed (4412) 4412 Prototype IDs (85) 1700 Alien Tech Used (6) 1200 Bonus (8867) 8867 TOTAL SCORE: 27474 Bonus ------- High Alert Combat Kills 185 Follower Combat Kills 1346 Met Data Miner 300 Met Imprinter 300 MAIN.C Attacked Warlord 500 Used Core Reset Matrix 3000 Scanned by Researcher 500 Win 3000 Friendly Fire -264 Cogmind --------- Core Integrity 531/1600 Matter 300/300 Energy 473/700 System Corruption 0% Temperature Cool (0) Movement Core (50) Location To Fleet Rendezvous Parts ------- > --- POWER (2) -------- (None) > --- PROPULSION (6) --- Centrium Leg Centrium Leg > --- UTILITY (14) ----- Experimental Coolant Injector Experimental Energy Well Experimental Optical Array Spectral Analyzer Terrain Scan Processor Advanced Melee Analysis Suite > --- WEAPON (3) ------- (None) > --- INVENTORY (5) ---- Experimental Hardlight Generator Dimensional Node Initializer High-powered Transdimensional Reconstructor Subatomic Replicator Compact HERF Cannon Peak State ------------ > --- POWER ------------ Compact Particle Reactor Quantum Reactor > --- PROPULSION ------- Antigrav Array Antigrav Array Antigrav Array > --- UTILITY ---------- 2N-1CE's Frost Array Experimental Coolant Injector Large Storage Unit Experimental Optical Array Spectral Analyzer Advanced Signal Interpreter Terrain Scanner Terrain Scanner Terrain Scan Processor Advanced Melee Analysis Suite Advanced Melee Analysis Suite Hacking Suite Hacking Suite Improved Hacking Suite > --- WEAPON ----------- Enhanced Nova Cannon Core Stripper > --- INVENTORY -------- Biometal Medium Treads Biometal Leg High-density Centrium Leg Wheel Experimental Energy Well Experimental Hardlight Generator Dimensional Node Initializer High-powered Transdimensional Reconstructor Core Reset Matrix Subatomic Replicator Compact HERF Cannon Light Antimatter Cannon Compact Linear Accelerator Sigix Terminator [Rating: 185] Favorites ----------- Power Backup Power VII Engine Ion Engine Power Core Backup Power VII Reactor Compact Particle Reactor Propulsion Improved VTOL Module Treads Light Treads Leg Aluminum Leg Wheel Wheel Hover Unit Antigrav Array Flight Unit Improved VTOL Module Utility Medium Storage Unit Device Structural Scanner Storage Medium Storage Unit Processor Advanced Signal Interpreter Hackware Makeshift Hacking Suite Protection Light Regenerative Plating Artifact Phase Redirector Weapon Great Maul Energy Gun EM Shotgun Energy Cannon Neutron Cannon Ballistic Gun Assault Rifle Ballistic Cannon Perforator Launcher Sigix Terminator Special Weapon RU-N14's Throwing Claymores Impact Weapon Great Maul Slashing Weapon Plasma Sword Special Melee Weapon Datajack Build | -11 -10 -10 -10 -9 -8 -7 -7 -7 -7 -7 -7 -6 -6 -6 -6 -6 -6 -6 -5 -5 -5 -5 -5 -4 -4 -4 -3 -3 -2 -2 -1 ------- Run | Scr Mat Min Exi Min Mat Fac Was Fac Low Low Zio Pro Fac Was Fac Low Low Dat Pro Fac Upp Upp War Pro Fac Ext Res Tes Res Qua Acc Slots Evolved 18 | . . . . . 4 2 . . . . . . 2 . . . . . . 2 . . . . 2 . 2 . 2 . 2 Power 1 | . . . . . . . . . . . . . . . . . . . . . . . . . 1 . . . . . . Propulsion 4 | . . . . . 2 1 . . . . . . . . . . . . . . . . . . . . 1 . . . . Utility 12 | . . . . . 2 1 . . . . . . 2 . . . . . . 2 . . . . 1 . 1 . 2 . 1 Weapon 1 | . . . . . . . . . . . . . . . . . . . . . . . . . . . . . . . 1 Parts Attached 307 | 6 24 3 3 3 45 9 . 1 2 3 2 . 33 . 6 3 1 1 14 20 1 5 8 . 7 14 13 24 10 30 16 Power 18 | 1 . 1 . . 3 . . . . . . . 1 . . . . . . . . . . . . 4 3 1 1 2 1 Engine 7 | 1 . 1 . . 2 . . . . . . . . . . . . . . . . . . . . 1 2 . . . . Core 4 | . . . . . 1 . . . . . . . 1 . . . . . . . . . . . . 2 . . . . . Reactor 7 | . . . . . . . . . . . . . . . . . . . . . . . . . . 1 1 1 1 2 1 Propulsion 69 | 2 17 2 . . 15 4 . . . . . . 9 . . . . . . 2 . . 2 . . 1 5 . 2 3 5 Treads 11 | 1 7 1 . . 2 . . . . . . . . . . . . . . . . . . . . . . . . . . Leg 9 | . 2 . . . 3 . . . . . . . . . . . . . . . . . . . . . . . . . 4 Wheel 18 | 1 8 1 . . 7 . . . . . . . . . . . . . . . . . . . . . . . . . 1 Hover 5 | . . . . . . . . . . . . . . . . . . . . . . . . . . 1 . . 1 3 . Flight 26 | . . . . . 3 4 . . . . . . 9 . . . . . . 2 . . 2 . . . 5 . 1 . . Utility 148 | 1 4 . 1 . 6 4 . 1 2 3 2 . 19 . 6 3 1 1 11 15 1 3 5 . 7 6 5 16 6 13 6 Device 75 | . . . . . 2 2 . . 1 2 1 . 8 . 4 2 1 . 7 8 1 3 2 . 3 4 2 13 3 3 3 Storage 10 | 1 1 . . . . 1 . . . . . . 1 . . . . . . 1 . . 1 . . . . 1 1 1 1 Processor 15 | . . . . . 1 1 . . . . 1 . 3 . . . . . . . . . 1 . . . 1 . 1 4 2 Hackware 18 | . . . . . 1 . . 1 1 . . . 5 . 1 . . . . 4 . . . . 1 . 2 1 . 1 . Protection 29 | . 3 . 1 . 2 . . . . 1 . . 2 . 1 1 . 1 4 2 . . 1 . 3 2 . 1 1 3 . Artifact 1 | . . . . . . . . . . . . . . . . . . . . . . . . . . . . . . 1 . Weapon 72 | 2 3 . 2 3 21 1 . . . . . . 4 . . . . . 3 3 . 2 1 . . 3 . 7 1 12 4 Energy Gun 1 | . . . . . 1 . . . . . . . . . . . . . . . . . . . . . . . . . . Energy Cannon 22 | . . . . . 5 . . . . . . . . . . . . . . 1 . . 1 . . 1 . 4 . 9 1 Ballistic Gun 14 | 2 3 . . 3 5 . . . . . . . . . . . . . . . . . . . . . . . . 1 . Ballistic Cannon 3 | . . . . . . . . . . . . . . . . . . . . . . . . . . . . 1 . 1 1 Launcher 2 | . . . . . . . . . . . . . . . . . . . . . . . . . . . . . . 1 1 Special Weapon 3 | . . . . . . . . . . . . . . . . . . . 1 . . 1 . . . 1 . . . . . Impact Weapon 14 | . . . 1 . 8 . . . . . . . 1 . . . . . 1 1 . 1 . . . . . . . . 1 Slashing Weapon 10 | . . . . . 2 1 . . . . . . 3 . . . . . 1 1 . . . . . . . 1 1 . . Piercing Weapon . | . . . . . . . . . . . . . . . . . . . . . . . . . . . . . . . . Special Melee Weapon 3 | . . . 1 . . . . . . . . . . . . . . . . . . . . . . 1 . 1 . . . Unidentified Prototypes 23 | . . . . . 3 . . . . . . . 1 . . . . . . 1 . . 5 . . . . 3 3 3 4 Parts Lost 58 | . 4 . . . 4 . . . . . . . 5 . . . . . . . . . . . . 8 . 5 . 14 18 Power 8 | . . . . . . . . . . . . . . . . . . . . . . . . . . 3 . 1 . 2 2 Propulsion 15 | . 2 . . . 2 . . . . . . . 2 . . . . . . . . . . . . 1 . 1 . 1 6 Utility 29 | . 1 . . . 1 . . . . . . . 3 . . . . . . . . . . . . 4 . 2 . 10 8 Weapon 6 | . 1 . . . 1 . . . . . . . . . . . . . . . . . . . . . . 1 . 1 2 Highest Loss Streak 13 | . 4 . . . 2 . . . . . . . 2 . . . . . . . . . . . . 7 . 3 . 4 13 To Critical Strikes . | . . . . . . . . . . . . . . . . . . . . . . . . . . . . . . . . Average Slot Usage (%) 96 | . 96 100 99 100 99 100 100 100 100 100 100 100 98 100 100 100 100 100 99 99 100 100 100 100 100 93 96 93 77 83 62 Engine 3 | . 14 14 14 14 7 . . . . . . . . . . . . . . . . . . . . 1 3 3 . . . Core 3 | . . . . . 1 7 7 7 7 7 7 7 6 6 6 6 6 6 6 5 5 5 5 5 9 5 . . . . . Treads 2 | . 12 15 14 14 6 . . . . . . . . . . . . . . . . . . . . . . . . . . Leg 1 | . 3 . . . 10 . . . . . . . . . . . . . . . . . . . . . . . . . 4 Wheel 3 | . 11 12 14 14 17 . . . . . . . . . . . . . . . . . . . . . . . . . . Flight 21 | . . . . . . 38 38 38 38 38 38 38 32 33 33 33 33 33 33 29 29 29 29 29 26 23 22 22 17 4 . Device 8 | . . . . . 5 15 15 7 15 14 15 15 8 13 8 12 13 10 11 10 11 11 8 5 5 6 13 10 13 10 7 Storage 7 | . 14 14 14 14 9 7 7 7 7 7 7 7 6 6 6 6 6 6 6 5 5 5 5 5 5 5 4 4 4 4 4 Processor 6 | . . . . . 2 7 7 7 7 7 7 7 5 6 6 6 6 6 6 5 5 5 7 11 10 10 9 9 8 15 19 Hackware 14 | . . . . . 8 7 7 14 7 7 7 7 21 20 24 20 20 20 20 21 23 23 23 23 26 23 20 26 17 17 8 Protection 4 | . 10 14 13 14 9 . . . . . . . . . . . . 2 1 6 5 5 5 5 4 4 1 . 3 4 . Energy Cannon 1 | . . . . . 3 . . . . . . . . . . . . . . . . . 1 5 5 4 4 3 2 5 3 Ballistic Gun 3 | . 28 28 . 28 6 . . . . . . . . . . . . . . . . . . . . . . . . . . Impact Weapon 4 | . . . 14 . 6 7 7 7 7 7 7 7 6 6 6 6 6 6 5 4 5 4 3 . . . . . . . 2 Slashing Weapon 3 | . . . . . 1 7 7 7 7 7 7 7 5 6 6 6 6 6 6 5 5 5 5 5 5 5 4 3 4 . . Naked Turns . | . . . . . . . . . . . . . . . . . . . . . . . . . . . . . . . . Heaviest Build 89 | 12 30 30 29 31 46 24 24 24 24 25 24 24 25 24 24 25 24 25 25 32 28 28 32 32 36 41 44 54 48 89 77 Greatest Support 120 | 10 20 16 16 16 32 25 25 25 25 25 25 25 31 31 31 31 31 31 31 32 32 32 36 36 36 41 54 54 48 80 120 Greatest Overweight (x) 7 | 1 1 1 1 1 4 . . . . . . . . . . . . . . . . . . . . . . . . 1 7 Average Overweight (x) . | . . 1 1 1 1 . . . . . . . . . . . . . . . . . . . . . . . . . . Largest Inventory Capacity 15 | 8 15 15 15 15 15 15 10 10 10 10 10 10 10 10 10 10 10 10 10 10 10 10 10 10 10 10 10 15 15 15 15 Average Capacity 11 | 7 9 15 15 15 15 12 10 10 10 10 10 10 10 10 10 10 10 10 10 10 10 10 10 10 10 10 10 14 15 15 14 Most Carried 15 | 5 12 14 15 15 15 15 10 10 10 10 10 10 10 10 10 10 10 10 10 10 10 10 10 10 10 10 10 15 15 15 15 Average Carried 11 | 2 8 12 14 14 14 11 9 9 9 10 9 10 9 10 10 9 10 10 10 9 9 9 9 10 9 9 9 14 14 14 13 Final Capacity 15 | 8 15 15 15 15 15 10 10 10 10 10 10 10 10 10 10 10 10 10 10 10 10 10 10 10 10 10 10 15 15 15 5 Final Carried 15 | 5 12 13 15 15 15 10 10 10 10 10 10 10 10 10 10 10 10 10 10 10 10 10 10 10 10 10 10 15 15 14 5 Class Distribution -------------------- 34% | Hacker-Scout 12% | Mutant 11% | Wizard-Scout 11% | Scout 7% | Scavenger-Mutant 7% | Hacker-Sprinter 5% | Commander-Mutant 4% | Hacker-Mutant Dominant Class ---------------- Mutant | -10/Materials Mutant | -10/Mines Mutant | -10/Exiles Commander-Mutant | -9/Mines Scavenger-Mutant | -8/Materials Scavenger-Mutant | -7/Factory Scavenger-Scout | -7/Waste Hacker-Sprinter | -7/Factory Scout | -7/Lower Caves Scout | -7/Lower Caves Scout | -7/Zion Scout | -6/Proximity Caves Hacker-Sprinter | -6/Factory Hacker-Scout | -6/Waste Hacker-Sprinter | -6/Factory Hacker-Scout | -6/Lower Caves Hacker-Scout | -6/Lower Caves Hacker-Scout | -6/Data Miner Hacker-Scout | -5/Proximity Caves Hacker-Scout | -5/Factory Hacker-Scout | -5/Upper Caves Hacker-Scout | -5/Upper Caves Hacker-Scout | -5/Warlord Hacker-Scout | -4/Proximity Caves Wizard-Scout | -4/Factory Hacker-Scout | -4/Extension Wizard-Scout | -3/Research Wizard-Scout | -3/Testing Hacker-Scout | -2/Research Hacker-Mutant | -2/Quarantine Hacker-Gladiator | -1/Access Resources | -11 -10 -10 -10 -9 -8 -7 -7 -7 -7 -7 -7 -6 -6 -6 -6 -6 -6 -6 -5 -5 -5 -5 -5 -4 -4 -4 -3 -3 -2 -2 -1 ----------- Run | Scr Mat Min Exi Min Mat Fac Was Fac Low Low Zio Pro Fac Was Fac Low Low Dat Pro Fac Upp Upp War Pro Fac Ext Res Tes Res Qua Acc Matter Collected 4486 | 209 781 94 52 36 632 . 90 10 20 30 . 20 159 . 28 164 54 . 150 110 90 57 23 . 130 112 90 13 304 948 80 Remotely . | . . . . . . . . . . . . . . . . . . . . . . . . . . . . . . . . Salvage Created 4973 | . 649 94 . 25 1222 . . . . 18 . 117 145 . 28 . . . 396 45 . 47 . . 29 762 181 47 73 1048 47 Parts 214 | . 46 5 . 1 53 . . . . 2 . 3 9 . 4 . . . 4 1 . 5 . . 1 24 11 1 5 31 8 Haulers Intercepted 3 | . . . . . 3 . . . . . . . . . . . . . . . . . . . . . . . . . . Recyclers Shooed 1 | . . . . . . . . . . . . . . . . . . . . . . . . . . . 1 . . . . Parts Field Recycled . | . . . . . . . . . . . . . . . . . . . . . . . . . . . . . . . . Retrieved Matter . | . . . . . . . . . . . . . . . . . . . . . . . . . . . . . . . . Parts Self-Destructed 53 | . . . . . . . . . 11 3 . . . . . . . . 35 . . 4 . . . . . . . . . Prevented 10 | . . . . . . . . . . 2 . 4 . . . . . . 4 . . . . . . . . . . . . Kills | -11 -10 -10 -10 -9 -8 -7 -7 -7 -7 -7 -7 -6 -6 -6 -6 -6 -6 -6 -5 -5 -5 -5 -5 -4 -4 -4 -3 -3 -2 -2 -1 ------- Run | Scr Mat Min Exi Min Mat Fac Was Fac Low Low Zio Pro Fac Was Fac Low Low Dat Pro Fac Upp Upp War Pro Fac Ext Res Tes Res Qua Acc Combat Hostiles Destroyed 77 | . 19 2 . . 20 . . . . 1 . 2 . . . . . . 1 . . 4 . . . 14 . . . 12 2 Melee 4 | . . . . . 1 . . . . . . . . . . . . . 1 . . . . . . 2 . . . . . Guns 30 | . 19 2 . . 9 . . . . . . . . . . . . . . . . . . . . . . . . . . Cannons 12 | . . . . . 3 . . . . . . . . . . . . . . . . 1 . . . 1 . . . 7 . AOE 15 | . . . . . . . . . . . . . . . . . . . . . . 3 . . . 9 . . . 1 2 Classes Destroyed 18 | . 4 . . 1 5 . . . . . . 1 . . . . . . 1 . . . . . . 2 1 1 . 2 . Worker 5 | . . . . 1 . . . . . . . . . . . . . . . . . . . . . . . . 1 2 1 Builder 8 | . . . . . 1 . . . . . . . . . . . . . . 1 . . . . . 1 1 . 1 . 3 Tunneler 2 | . . . . . . . . . . . . . . . . . . . . . . . . . . . 1 . . . 1 Hauler 3 | . . . . . 3 . . . . . . . . . . . . . . . . . . . . . . . . . . Recycler 9 | . . . . . 2 . . . . . . . 1 . . . . . 2 . . . . . . 2 1 . . . 1 Minesweeper 1 | . . . . . . . . . . . . . . . . . . . 1 . . . . . . . . . . . . Operator 1 | . 1 . . . . . . . . . . . . . . . . . . . . . . . . . . . . . . Drone 2 | . . . . . . . . . . . . . . . . . . . . . . . . . . . . . . 2 . Watcher 13 | . 2 . . . 3 . . . . . . . 1 . 1 . . . 2 1 . . . . 1 1 . . 1 . . Swarmer 22 | . 6 . . . 3 . . . . 1 . . . . . . . . . . . 4 . . . 8 . . . . . Grunt 34 | . 13 2 . . 11 . . . . . . . . . . . . . 1 . . . . . . . . . . 7 . Brawler 1 | . . . . . 1 . . . . . . . . . . . . . . . . . . . . . . . . . . Duelist 2 | . . . . . . . . . . . . . . . . . . . . . . . . . . 2 . . . . . Researcher 2 | . . . . . . . . . . . . . . . . . . . . . . . . . . . . 1 . 1 . Sentry 5 | . . . . . 5 . . . . . . . . . . . . . . . . . . . . . . . . . . Hunter 7 | . . . . . . . . . . . . 2 . . . . . . . . . . . . . 3 . . . 2 . Behemoth 3 | . . . . . . . . . . . . . . . . . . . . . . . . . . 1 . . . . 2 Alpha 7 1 | . . . . . . . . . . . . . . . . . . . . . . . . . . . . . . 1 . Best Kill Streak 12 | . 7 1 . 1 6 . . . . 1 . 1 2 . 1 . . . 2 1 . 4 . . 1 12 3 1 2 6 6 Combat Bots Only 11 | . 5 1 . . 6 . . . . 1 . 1 . . . . . . 1 . . 4 . . . 11 . . . 4 2 Max Kills in Single Turn 6 | . 1 1 . 1 1 . . . . 1 . 1 1 . 1 . . . 1 1 . 4 . . 1 4 1 1 1 2 6 Gunslinging . | . . . . . . . . . . . . . . . . . . . . . . . . . . . . . . . . Exploded 3 | . . . . . . . . . . . . . . . . . . . . . . 3 . . . 3 . . . 1 2 Melee 1 | . . . . . 1 . . . . . . . . . . . . . 1 . . . . . . 1 . . . . . Uniques/NPCs Destroyed . | . . . . . . . . . . . . . . . . . . . . . . . . . . . . . . . . Combat | -11 -10 -10 -10 -9 -8 -7 -7 -7 -7 -7 -7 -6 -6 -6 -6 -6 -6 -6 -5 -5 -5 -5 -5 -4 -4 -4 -3 -3 -2 -2 -1 -------- Run | Scr Mat Min Exi Min Mat Fac Was Fac Low Low Zio Pro Fac Was Fac Low Low Dat Pro Fac Upp Upp War Pro Fac Ext Res Tes Res Qua Acc Damage Taken 11403 | . 800 157 . 14 1155 . . 81 30 . . 19 586 . 5 . . . 43 27 . 43 33 36 25 1360 . 361 91 2896 3641 Core 2706 | . 119 52 . . 169 . . 54 . . . 19 191 . 5 . . . . . . . 22 . . 403 . 91 . 512 1069 Absorbed by Shields 166 | . . . . . . . . . . . . . 64 . . . . . . . . . . . . 102 . . . . . Redirected to Core 76 | . . . . . . . . . . . . . . . . . . . . . . . . . . . . . . 76 . Redirected to Shielding 263 | . 10 11 . . . . . . . . . . . . . . . . . . . . . . . 152 . . 12 78 . Regen/Repaired (Parts) 315 | . . . . . . . . 69 . . . . . . . . . . . 90 . . . 5 24 17 . 22 . 88 . Core Remaining (%) 70 | 100 . . . 31 69 . . . . . . 89 . . . . . . 76 . . . . 97 . 64 . 93 . 50 33 Volleys Fired 237 | . 56 9 . 1 50 . . . . . . . . . . . . . 3 1 . 1 . 15 8 14 . 12 . 62 5 Largest 2 | . 2 2 . 2 2 . . . . . . . . . . . . . 1 1 . 1 . 1 1 1 . 1 . 2 1 Hottest 214 | . 40 40 . 40 136 . . . . . . . . . . . . . . 90 . . . 90 90 94 . 113 . 214 120 Shots Fired 360 | . 112 18 . 3 96 . . . . . . . . . . . . . 3 1 . 1 . 15 8 14 . 12 . 72 5 Gun 194 | . 112 18 . 3 61 . . . . . . . . . . . . . . . . . . . . . . . . . . Cannon 155 | . . . . . 35 . . . . . . . . . . . . . . 1 . . . 15 8 8 . 12 . 72 4 Launcher 1 | . . . . . . . . . . . . . . . . . . . . . . . . . . . . . . . 1 Special 10 | . . . . . . . . . . . . . . . . . . . 3 . . 1 . . . 6 . . . . . Kinetic 203 | . 112 18 . 3 55 . . . . . . . . . . . . . . . . . . . . . . . . 15 . Thermal 111 | . . . . . 35 . . . . . . . . . . . . . . 1 . . . 15 8 3 . 11 . 33 5 Explosive 10 | . . . . . . . . . . . . . . . . . . . 3 . . 1 . . . 6 . . . . . Electromagnetic 36 | . . . . . 6 . . . . . . . . . . . . . . . . . . . . 5 . 1 . 24 . Robot Hit Streak 13 | . 11 9 . 2 13 . . . . . . . . . . . . . 5 . . 6 . . . 3 . 4 . 13 . Robot Miss Streak 4 | . 3 2 . 1 3 . . . . . . . . . . . . . . . . . . . 1 2 . . . 4 . Penetration Max 1 | . . . . . . . . . . . . . . . . . . . . . . . . . . . . . . 1 . Secondary Targets 4 | . 3 . . . 1 . . . . . . . . . . . . . . . . . . . . . . . . . . Max Gunslinging Chain 1 | . 1 . . . 1 . . . . . . . . . . . . . . . . . . . . . . . . . . Shots Hit Robots 299 | . 82 11 12 2 98 . . . . 1 . 3 2 . 1 . . . 9 2 . 1 . . 2 26 4 1 4 34 4 Core Hits 156 | . 37 5 . 1 35 . . . . . . . 2 . 1 . . . 4 . . 3 . . 1 19 2 1 2 38 5 Critical Kills 7 | . . . . . . . . . . . . . . . . . . . . . . . . . . . . . . 7 . Critical Parts Destroyed 24 | . . . . . 8 . . . . . . 2 . . . . . . 1 1 . . . . . . . . . 12 . Critical Strikes 39 | . . . . . 9 . . . . . . 2 . . . . . . 3 1 . . . . 1 1 . . . 22 . Meltdown 1 | . . . . . . . . . . . . . . . . . . . . . . . . . . . . . . 1 . Destroy 22 | . . . . . 1 . . . . . . . . . . . . . . . . . . . . . . . . 21 . Corrupt 1 | . . . . . . . . . . . . . . . . . . . . . . . . . . 1 . . . . . Smash 11 | . . . . . 7 . . . . . . 2 . . . . . . 1 1 . . . . . . . . . . . Sever 4 | . . . . . 1 . . . . . . . . . . . . . 2 . . . . . 1 . . . . . . Melee Attacks 459 | . . . 12 . 46 . . 14 9 19 . 26 42 . 21 26 18 . 22 29 6 34 2 24 31 25 11 20 14 4 4 Kinetic 4 | . . . . . . . . . . . . . . . . . . . . . . . . . . . . . . . 4 Impact 243 | . . . . . 36 . . 12 8 16 . 20 30 . 18 22 14 . 17 18 6 24 2 . . . . . . . . Slashing 192 | . . . . . 10 . . 2 1 3 . 6 12 . 3 4 4 . 5 11 . 10 . 24 31 17 11 20 14 4 . Piercing 8 | . . . . . . . . . . . . . . . . . . . . . . . . . . 8 . . . . . Sneak Attacks 37 | . . . 11 . 5 . . . . . . 2 1 . . . . . 4 1 . . . . 1 5 3 . 2 . 2 Combat Hostiles 18 | . . . 11 . . . . . . . . 2 . . . . . . 1 . . . . . . 4 . . . . . Follow-up Attacks 4 | . . . . . 2 . . 1 . . . . . . 1 . . . . . . . . . . . . . . . . Damage Inflicted 16827 | . 1042 127 . 27 2791 . . . . 37 . 202 138 . 44 . . . 1058 193 . 400 . . 127 2483 342 55 315 1269 6177 Guns 2008 | . 1042 127 . 27 812 . . . . . . . . . . . . . . . . . . . . . . . . . . Cannons 1617 | . . . . . 370 . . . . . . . . . . . . . . . . . . . . 109 . 55 . 1083 . Explosions 8038 | . . . . . . . . . . . . . . . . . . . 404 . . 369 . . . 1307 . . . 182 5776 Melee 4867 | . . . . . 1609 . . . . 37 . 202 138 . 44 . . . 550 193 . . . . 127 909 342 . 315 . 401 Ramming 4 | . . . . . . . . . . . . . . . . . . . . . . . . . . . . . . 4 . Kinetic 2567 | . 1042 127 . 27 726 . . . . . . . . . . . . . . . . . . . . . . . . 244 401 Thermal 6512 | . . . . . 370 . . . . . . . . . . . . . . . . . . . . 171 . . . 195 5776 Explosive 1909 | . . . . . . . . . . . . . . . . . . . 404 . . 369 . . . 1136 . . . . . Electromagnetic 1076 | . . . . . 86 . . . . . . . . . . . . . . . . . . . . 109 . 55 . 826 . Impact 2335 | . . . . . 1353 . . . . 37 . 202 . . . . . . 550 193 . . . . . . . . . . . Slashing 2411 | . . . . . 256 . . . . . . . 138 . 44 . . . 104 . . 31 . . 127 1054 342 . 315 . . Piercing 13 | . . . . . . . . . . . . . . . . . . . . . . . . . . 13 . . . . . Highest Corruption 12 | . 2 2 2 2 . . . . . . . . . . . . . . . . . . . . . . . 1 2 12 . Average Corruption 3 | . 1 2 2 2 . . . . . . . . . . . . . . . . . . . . . . . 1 2 6 . Corruption Purged . | . . . . . . . . . . . . . . . . . . . . . . . . . . . . . . . . Corruption Blocked 35 | . . . . . . . . . . . . . . . . . . . . . . . . . . . . 15 . 20 . Effects 52 | . 12 3 4 5 . . . . . . . . . . . . . . . . . . . . . . . . 1 27 . Message Errors 11 | . 3 2 . 1 . . . . . . . . . . . . . . . . . . . . . . . . 1 4 . Matter Fused 8 | . 1 . . 1 . . . . . . . . . . . . . . . . . . . . . . . . . 6 . Heat Flow Errors 9 | . 3 . . 1 . . . . . . . . . . . . . . . . . . . . . . . . . 5 . Energy Discharges 6 | . 1 1 1 . . . . . . . . . . . . . . . . . . . . . . . . . . 3 . Parts Rejected 2 | . 1 . 1 . . . . . . . . . . . . . . . . . . . . . . . . . . . . Data Loss (minor) 4 | . . . . 1 . . . . . . . . . . . . . . . . . . . . . . . . . 3 . Data Loss (major) 2 | . 1 . 1 . . . . . . . . . . . . . . . . . . . . . . . . . . . . Misfires 2 | . . . . 1 . . . . . . . . . . . . . . . . . . . . . . . . . 1 . Alerts 3 | . 2 . 1 . . . . . . . . . . . . . . . . . . . . . . . . . . . . Misdirections 5 | . . . . . . . . . . . . . . . . . . . . . . . . . . . . . . 5 . Overload Shots . | . . . . . . . . . . . . . . . . . . . . . . . . . . . . . . . . Overflow Damage 2475 | . . . . . 540 . . . . 12 . 142 . . . . . . 403 153 . 80 . . . 109 93 . 65 59 819 Projectiles 105 | . . . . . 35 . . . . . . . . . . . . . . . . . . . . 11 . . . 59 . Explosions 826 | . . . . . . . . . . . . . . . . . . . . . . 80 . . . 28 . . . . 718 Melee 1544 | . . . . . 505 . . . . 12 . 142 . . . . . . 403 153 . . . . . 70 93 . 65 . 101 Knockbacks 20 | . . . . . 7 . . . . . . 2 . . . . . . 2 . . . . . . . . . . 9 . Impact 10 | . . . . . 6 . . . . . . 2 . . . . . . 2 . . . . . . . . . . . . Kinetic 9 | . . . . . . . . . . . . . . . . . . . . . . . . . . . . . . 9 . Secondary 1 | . . . . . 1 . . . . . . . . . . . . . . . . . . . . . . . . . . Self-Inflicted Damage 883 | . . . . . . . . . . . . . . . . . . . . . . . . . . . . . . 53 830 Shots 2 | . . . . . . . . . . . . . . . . . . . . . . . . . . . . . . 1 1 Rammed 1 | . . . . . . . . . . . . . . . . . . . . . . . . . . . . . . 1 . Targets Rammed 1 | . . . . . . . . . . . . . . . . . . . . . . . . . . . . . . 1 . Kicked . | . . . . . . . . . . . . . . . . . . . . . . . . . . . . . . . . Crushed . | . . . . . . . . . . . . . . . . . . . . . . . . . . . . . . . . Highest Temperature 350 | . 154 2 . 161 289 3 4 4 4 4 4 11 6 . . . . . 2 36 . . . 126 72 108 4 350 . 291 132 Average Temperature 25 | . 48 2 . 73 134 2 2 2 2 2 2 2 1 . . . . . 2 17 . . . 37 30 38 4 73 . 104 67 Received Heat Transfer 1446 | . 399 90 . . 522 . . . . . . . 66 . . . . . 9 . . . . 9 . 27 . 81 . 243 . Effects 2 | . . . . . 2 . . . . . . . . . . . . . . . . . . . . . . . . . . Energy Bleed 2 | . . . . . 2 . . . . . . . . . . . . . . . . . . . . . . . . . . Siege Activations . | . . . . . . . . . . . . . . . . . . . . . . . . . . . . . . . . Robots Corrupted 4 | . . . . . . . . . . . . . . . . . . . . . . . . . . 1 . . . 3 . Combat Hostiles 4 | . . . . . . . . . . . . . . . . . . . . . . . . . . 1 . . . 3 . Parts Fried 39 | . . . . . 10 . . . . . . 5 . . . . . . 10 3 . . . . . 7 . . . 4 . Impact Corruptions 35 | . . . . . 18 . . . . 1 . 4 . . . . . . 9 3 . . . . . . . . . . . Robots Melted 1 | . . . . . . . . . . . . . . . . . . . . . . . . . . . . . . 1 . Combat Hostiles 1 | . . . . . . . . . . . . . . . . . . . . . . . . . . . . . . 1 . Parts Melted 8 | . . . . . 2 . . . . . . . . . . . . . . . . . . . . 5 . . . 1 . Heat Transferred 1191 | . . . . . 666 . . . . . . . . . . . . . . . . . . . . 100 . . . 185 240 Parts Sabotaged . | . . . . . . . . . . . . . . . . . . . . . . . . . . . . . . . . Parts Stolen . | . . . . . . . . . . . . . . . . . . . . . . . . . . . . . . . . Parts Stripped . | . . . . . . . . . . . . . . . . . . . . . . . . . . . . . . . . Power Chain Reactions 1 | . . . . . . . . . . . . . . . . . . . . . . . . . . 1 . . . . . Missiles Intercepted . | . . . . . . . . . . . . . . . . . . . . . . . . . . . . . . . . Alert | -11 -10 -10 -10 -9 -8 -7 -7 -7 -7 -7 -7 -6 -6 -6 -6 -6 -6 -6 -5 -5 -5 -5 -5 -4 -4 -4 -3 -3 -2 -2 -1 ------- Run | Scr Mat Min Exi Min Mat Fac Was Fac Low Low Zio Pro Fac Was Fac Low Low Dat Pro Fac Upp Upp War Pro Fac Ext Res Tes Res Qua Acc Peak Influence 1061 | . 397 158 . 112 292 9 3 317 . . . . 558 73 165 . . . . 192 . . . . 203 717 336 298 409 542 1061 Initial 238 | . . 108 . . 1 9 3 2 . . . . . 28 51 . . . . 102 . . . . . 99 232 189 108 238 175 Average 160 | . 214 154 . 88 77 9 3 141 . . . . 158 50 120 . . . . 77 . . . . 87 324 272 140 198 344 229 Maximum Alert Level 3 | . 1 . . . 1 . . 1 . . . . 2 . . . . . . . . . . . 1 3 1 1 2 2 3 Low Security (%) 71 | 100 43 100 . 100 97 100 100 80 . . . . 64 100 100 . . . . 100 . . . . 96 48 . 72 60 . 84 Level 1 22 | . 56 . . . 2 . . 19 . . . . 22 . . . . . . . . . . . 3 12 100 27 34 68 8 Level 2 5 | . . . . . . . . . . . . . 13 . . . . . . . . . . . . 27 . . 5 31 . Level 3 . | . . . . . . . . . . . . . . . . . . . . . . . . . . 12 . . . . 6 Level 4 . | . . . . . . . . . . . . . . . . . . . . . . . . . . . . . . . . Level 5 . | . . . . . . . . . . . . . . . . . . . . . . . . . . . . . . . . High Security . | . . . . . . . . . . . . . . . . . . . . . . . . . . . . . . . . Max Security . | . . . . . . . . . . . . . . . . . . . . . . . . . . . . . . . . Squads Dispatched 35 | . 6 . . . 2 . . 2 . . . . 4 . . . . . . 8 . . . . 2 1 1 2 1 5 1 Investigation 11 | . 3 . . . 1 . . 2 . . . . 3 . . . . . . 2 . . . . . . . . . . . Extermination 9 | . . . . . . . . . . . . . . . . . . . . 3 . . . . 1 . 1 1 . 2 1 Reinforcement 14 | . 3 . . . 1 . . . . . . . 1 . . . . . . 3 . . . . 1 1 . 1 1 2 . Assault 1 | . . . . . . . . . . . . . . . . . . . . . . . . . . . . . . 1 . Garrison . | . . . . . . . . . . . . . . . . . . . . . . . . . . . . . . . . Intercept . | . . . . . . . . . . . . . . . . . . . . . . . . . . . . . . . . Searches Triggered . | . . . . . . . . . . . . . . . . . . . . . . . . . . . . . . . . Data Miner Redirects 3 | . . . . . . . . . . . . . . . . . . . . 2 . . . . . . . . . 1 . Construction Impeded . | . . . . . . . . . . . . . . . . . . . . . . . . . . . . . . . . Haulers Reinforced . | . . . . . . . . . . . . . . . . . . . . . . . . . . . . . . . . Active Scanning Responses . | . . . . . . . . . . . . . . . . . . . . . . . . . . . . . . . . Cargo Convoy Interrupts 1 | . . . . . . . . . . . . . 1 . . . . . . . . . . . . . . . . . . Stealth | -11 -10 -10 -10 -9 -8 -7 -7 -7 -7 -7 -7 -6 -6 -6 -6 -6 -6 -6 -5 -5 -5 -5 -5 -4 -4 -4 -3 -3 -2 -2 -1 --------- Run | Scr Mat Min Exi Min Mat Fac Was Fac Low Low Zio Pro Fac Was Fac Low Low Dat Pro Fac Upp Upp War Pro Fac Ext Res Tes Res Qua Acc Distress Signals 18 | . 5 . . . 3 . . . . . . . 1 . . . . . 1 . . . . . 2 . . 2 2 1 1 Communications Jammed 2 | . . . . . . . . . . . . . . . . . . . . . . . . . 2 . . . . . . Distress Signals 2 | . . . . . . . . . . . . . . . . . . . . . . . . . 2 . . . . . . Times Spotted 303 | . 34 2 . 4 36 . . 4 8 4 . 1 27 5 4 . . . 11 8 3 6 5 6 12 36 1 23 16 40 7 Peak Tracking Total 13 | . 7 2 . 4 7 . . 1 4 4 . 1 9 5 3 . . . 4 3 7 4 11 3 3 12 1 13 13 8 5 Tactical Retreats 42 | . 1 . . . 1 . . . 2 2 . . 11 . 1 . . . 1 1 4 . 2 3 1 3 1 3 3 2 . Traps | -11 -10 -10 -10 -9 -8 -7 -7 -7 -7 -7 -7 -6 -6 -6 -6 -6 -6 -6 -5 -5 -5 -5 -5 -4 -4 -4 -3 -3 -2 -2 -1 ------- Run | Scr Mat Min Exi Min Mat Fac Was Fac Low Low Zio Pro Fac Was Fac Low Low Dat Pro Fac Upp Upp War Pro Fac Ext Res Tes Res Qua Acc Traps Triggered 15 | . 3 . . . 1 1 . 3 . . . . 5 . . . . . . . . . . . . 1 . . 1 . . Indirectly . | . . . . . . . . . . . . . . . . . . . . . . . . . . . . . . . . Trap Hack Attempts . | . . . . . . . . . . . . . . . . . . . . . . . . . . . . . . . . Triggered . | . . . . . . . . . . . . . . . . . . . . . . . . . . . . . . . . Disarmed 16 | . . . . . . . . 6 . . . . . . . . . . . . . . . . . 6 . 4 . . . Reprogrammed 22 | . . . . . . . . . . . . . 6 . . . . . . 12 . . . . 4 . . . . . . Reused 3 | . . . . . . . . . . . . . 2 . . . . . . 1 . . . . . . . . . . . Traps Extracted . | . . . . . . . . . . . . . . . . . . . . . . . . . . . . . . . . Installed 4 | . . . . . . . . . . . . . . . . . . . 4 . . . . . . . . . . . . Triggered 5 | . . . . . . . . . . . . . 2 . . . . . . 1 . . 1 . . 1 . . . . . Machines | -11 -10 -10 -10 -9 -8 -7 -7 -7 -7 -7 -7 -6 -6 -6 -6 -6 -6 -6 -5 -5 -5 -5 -5 -4 -4 -4 -3 -3 -2 -2 -1 ---------- Run | Scr Mat Min Exi Min Mat Fac Was Fac Low Low Zio Pro Fac Was Fac Low Low Dat Pro Fac Upp Upp War Pro Fac Ext Res Tes Res Qua Acc Machines Disabled 31 | . . . . . 2 . . 1 . . . . . . . . . . 2 . . 1 . . . 1 . 6 1 10 7 Max in Single Turn 7 | . . . . . 1 . . 1 . . . . . . . . . . 1 . . 1 . . . 1 . 1 1 3 7 Garrison Access 9 | . . . . . 1 . . 1 . . . . 2 . 1 . . . . 1 . . . . 1 . . 1 . 1 . Energy Cycler 1 | . . . . . . . . . . . . . . . . . . . . . . . . . . 1 . . . . . Machines Sabotaged . | . . . . . . . . . . . . . . . . . . . . . . . . . . . . . . . . Garrisons Compromised 1 | . . . . . . . . . . . . . . . . . . . . . . . . . 1 . . . . . . Overloaded Fab Kills . | . . . . . . . . . . . . . . . . . . . . . . . . . . . . . . . . Hacking | -11 -10 -10 -10 -9 -8 -7 -7 -7 -7 -7 -7 -6 -6 -6 -6 -6 -6 -6 -5 -5 -5 -5 -5 -4 -4 -4 -3 -3 -2 -2 -1 --------- Run | Scr Mat Min Exi Min Mat Fac Was Fac Low Low Zio Pro Fac Was Fac Low Low Dat Pro Fac Upp Upp War Pro Fac Ext Res Tes Res Qua Acc Machines Accessed 145 | . 7 . 1 . 11 . . 13 2 1 1 . 20 . 5 . . 4 4 19 2 . 2 . 10 8 4 15 5 11 . Terminals 79 | . 5 . . . 8 . . 5 . . . . 12 . 3 . . . 2 9 . . . . 4 8 2 10 4 7 . Fabricators 17 | . . . . . . . . 4 . . . . 4 . . . . . 1 4 . . . . 2 . 1 1 . . . Repair Stations 11 | . . . . . . . . 1 . . . . 1 . . . . . . 3 . . . . 2 . 1 1 . 2 . Recycling Units 8 | . 2 . . . 1 . . 1 . . . . . . 1 . . . 1 1 . . . . . . . . 1 . . Scanalyzers 8 | . . . . . 1 . . 1 . . . . 1 . . . . . . 1 . . . . 1 . . 2 . 1 . Garrison Access 9 | . . . . . 1 . . 1 . . . . 2 . 1 . . . . 1 . . . . 1 . . 1 . 1 . Total Hacks 485 | . 18 . 1 . 26 . . 35 2 1 10 . 78 . 14 . . 28 9 82 2 . 5 . 33 32 11 63 11 24 . Successful 371 | . 8 . 1 . 17 . . 26 2 1 10 . 58 . 7 . . 28 5 67 2 . 5 . 29 24 5 50 7 19 . Failed 113 | . 10 . . . 9 . . 9 . . . . 19 . 7 . . . 4 15 . . . . 4 8 6 13 4 5 . Catastrophic 5 | . . . . . . . . . . . . . 2 . . . . . . 1 . . . . . 1 . 1 . . . Database Lockouts 1 | . . . . . . . . . . . . . 1 . . . . . . . . . . . . . . . . . . Manual 166 | . 8 . . . 10 . . 15 . . . . 30 . 1 . . . . 33 . . . . 12 20 5 22 3 7 . Terminals 280 | . 16 . . . 23 . . 18 . . . . 44 . 10 . . . 3 40 . . . . 20 32 8 40 10 16 . Fabricators 45 | . . . . . . . . 8 . . . . 15 . . . . . 2 15 . . . . 3 . 1 1 . . . Repair Stations 25 | . . . . . . . . 2 . . . . 2 . . . . . . 6 . . . . 6 . 2 2 . 5 . Recycling Units 15 | . 2 . . . 1 . . 3 . . . . . . 1 . . . 4 3 . . . . . . . . 1 . . Scanalyzers 57 | . . . . . 1 . . 3 . . . . 13 . . . . . . 17 . . . . 3 . . 18 . 2 . Garrison Access 14 | . . . . . 1 . . 1 . . . . 4 . 3 . . . . 1 . . . . 1 . . 2 . 1 . Terminal Hacks 183 | . 5 . 1 . 9 . . 9 2 1 10 . 23 . 5 . . 28 2 21 2 . 5 . 13 14 3 19 4 7 . Record 17 | . . . 1 . . . . . . . . . . . . . . 11 1 . . . 4 . . . . . . . . Part Schematic 38 | . 2 . . . . . . . . . 10 . 4 . . . . 10 . 3 . . . . . 4 . 5 . . . Robot Schematic 4 | . . . . . . . . . . . . . . . . . . 4 . . . . . . . . . . . . . Robot Analysis 5 | . . . . . . . . 1 . . . . . . . . . . . 2 . . . . 1 . . . 1 . . Prototype ID Bank 14 | . 1 . . . 1 . . 1 . . . . 3 . . . . 3 . 2 . . . . 1 . . 2 . . . Open Door 11 | . . . . . . . . . 2 1 . . . . . . . . 1 . 2 . 1 . 1 . . 1 1 1 . Level Access Points 1 | . . . . . . . . . . . . . . . . . . . . . . . . . . . . . . 1 . Branch Access Points 6 | . . . . . . . . 1 . . . . . . 1 . . . . 1 . . . . 1 . 1 . 1 . . Machine Index 3 | . . . . . . . . . . . . . . . . . . . . . . . . . 1 . 1 1 . . . Terminal Index 7 | . . . . . 1 . . . . . . . 1 . 1 . . . . . . . . . 1 1 1 . 1 . . Fabricator Index 2 | . . . . . . . . . . . . . . . 1 . . . . 1 . . . . . . . . . . . Scanalyzer Index 2 | . . . . . . . . . . . . . 1 . . . . . . 1 . . . . . . . . . . . Garrison Index 1 | . . . . . . . . . . . . . . . . . . . . 1 . . . . . . . . . . . Alert Level 6 | . . . . . 1 . . . . . . . 2 . . . . . . 1 . . . . 1 1 . . . . . Unreport Threat 14 | . . . . . 3 . . 1 . . . . 3 . . . . . . 1 . . . . . 2 . 2 . 2 . Locate Traps 17 | . 1 . . . 1 . . 2 . . . . 2 . 1 . . . . 2 . . . . 2 1 . 4 . 1 . Disarm Traps 3 | . . . . . . . . 1 . . . . . . . . . . . . . . . . . 1 . 1 . . . Reprogram Traps 4 | . . . . . . . . . . . . . 1 . . . . . . 2 . . . . 1 . . . . . . Recall Investigation 2 | . . . . . . . . . . . . . 2 . . . . . . . . . . . . . . . . . . Recall Extermination 4 | . . . . . . . . . . . . . . . . . . . . 2 . . . . 1 . . 1 . . . Recall Reinforcements 1 | . . . . . . . . . . . . . . . . . . . . . . . . . . 1 . . . . . Hauler Manifests 1 | . . . . . 1 . . . . . . . . . . . . . . . . . . . . . . . . . . Zone Layout 20 | . 1 . . . 1 . . 2 . . . . 4 . 1 . . . . 2 . . . . 2 3 . 2 . 2 . Fabricator Hacks 26 | . . . . . . . . 1 . . . . 9 . . . . . 2 10 . . . . 2 . 1 1 . . . Network Status 8 | . . . . . . . . 1 . . . . 1 . . . . . . 2 . . . . 2 . 1 1 . . . Load Schematic 8 | . . . . . . . . . . . . . 3 . . . . . 1 4 . . . . . . . . . . . Build 10 | . . . . . . . . . . . . . 5 . . . . . 1 4 . . . . . . . . . . . Repair Station Hacks 18 | . . . . . . . . 2 . . . . 1 . . . . . . 6 . . . . 3 . . 2 . 4 . Scan Component 8 | . . . . . . . . 1 . . . . . . . . . . . 3 . . . . 1 . . 1 . 2 . Repair 7 | . . . . . . . . 1 . . . . . . . . . . . 3 . . . . . . . 1 . 2 . Refit 3 | . . . . . . . . . . . . . 1 . . . . . . . . . . . 2 . . . . . . Recycling Unit Hacks 5 | . . . . . . . . 1 . . . . . . 1 . . . 1 1 . . . . . . . . 1 . . Report Inventory 5 | . . . . . . . . 1 . . . . . . 1 . . . 1 1 . . . . . . . . 1 . . Scanalyzer 57 | . . . . . 1 . . 3 . . . . 13 . . . . . . 17 . . . . 3 . . 18 . 2 . Insert Component 32 | . . . . . 1 . . 2 . . . . 6 . . . . . . 6 . . . . 2 . . 13 . 2 . Analyze 25 | . . . . . . . . 1 . . . . 7 . . . . . . 11 . . . . 1 . . 5 . . . Garrison Access Hacks 8 | . . . . . 1 . . 1 . . . . 1 . 1 . . . . 1 . . . . 1 . . 1 . 1 . Seal Access 8 | . . . . . 1 . . 1 . . . . 1 . 1 . . . . 1 . . . . 1 . . 1 . 1 . Unauthorized Hacks 74 | . 3 . . . 6 . . 9 . . . . 11 . . . . . . 11 . . . . 7 10 1 9 2 5 . Terminals 55 | . 1 . . . 5 . . 4 . . . . 6 . . . . . . 6 . . . . 6 10 1 9 2 5 . Track 15 | . . . . . 1 . . . . . . . 1 . . . . . . 2 . . . . 1 4 . 3 1 2 . Assimilate 6 | . 1 . . . . . . . . . . . 1 . . . . . . . . . . . 1 1 . 1 . 1 . Botnet 23 | . . . . . 3 . . 3 . . . . 3 . . . . . . 3 . . . . 2 2 . 4 1 2 . Disrupt 3 | . . . . . . . . . . . . . . . . . . . . . . . . . . 2 . 1 . . . Operators 8 | . . . . . 1 . . 1 . . . . 1 . . . . . . 1 . . . . 2 1 1 . . . . Fabricators 12 | . . . . . . . . 4 . . . . 4 . . . . . . 3 . . . . 1 . . . . . . Report 1 | . . . . . . . . 1 . . . . . . . . . . . . . . . . . . . . . . . Prioritize 4 | . . . . . . . . . . . . . 2 . . . . . . 2 . . . . . . . . . . . Liberate 6 | . . . . . . . . 2 . . . . 2 . . . . . . 1 . . . . 1 . . . . . . Recompile 1 | . . . . . . . . 1 . . . . . . . . . . . . . . . . . . . . . . . Repair Stations . | . . . . . . . . . . . . . . . . . . . . . . . . . . . . . . . . Recycling Units 6 | . 2 . . . 1 . . 1 . . . . . . . . . . . 2 . . . . . . . . . . . Reject 1 | . . . . . . . . . . . . . . . . . . . . 1 . . . . . . . . . . . Recyclers 1 | . . . . . . . . . . . . . . . . . . . . 1 . . . . . . . . . . . Tunnel 4 | . 2 . . . 1 . . 1 . . . . . . . . . . . . . . . . . . . . . . . Scanalyzers . | . . . . . . . . . . . . . . . . . . . . . . . . . . . . . . . . Garrison Access 1 | . . . . . . . . . . . . . 1 . . . . . . . . . . . . . . . . . . Jam 1 | . . . . . . . . . . . . . 1 . . . . . . . . . . . . . . . . . . Data Cores Recovered 1 | . . . . . . . . 1 . . . . . . . . . . . . . . . . . . . . . . . Used 1 | . . . . . . . . 1 . . . . . . . . . . . . . . . . . . . . . . . Hacking Detections 96 | . 5 . . . 7 . . 9 . . . . 15 . 4 . . . 2 13 . . . . 8 7 3 9 5 9 . Full Trace Events 5 | . . . . . . . . . . . . . 2 . . . . . 1 2 . . . . . . . . . . . Feedback Events . | . . . . . . . . . . . . . . . . . . . . . . . . . . . . . . . . Feedback Blocked . | . . . . . . . . . . . . . . . . . . . . . . . . . . . . . . . . Robot Schematics Acquired 5 | . . . . . . . . . . . . . . . . . . 4 . . . . . . . . . 1 . . . Robots Built 6 | . . . . . . . . . . . . . 6 . . . . . . . . . . . . . . . . . . Authchips . | . . . . . . . . . . . . . . . . . . . . . . . . . . . . . . . . Time 210 | . . . . . . . . . . . . . 210 . . . . . . . . . . . . . . . . . . Total Robot Build Rating 26 | . . . . . . . . . . . . . 26 . . . . . . . . . . . . . . . . . . Part Schematics Acquired 64 | . 2 . . . . . . 1 . . 10 . 8 . . . . 10 . 9 . . . . 1 4 . 14 . 5 . Parts Built 10 | . . . . . . . . . . . . . 5 . . . . . 1 4 . . . . . . . . . . . Authchips 3 | . . . . . . . . . . . . . 1 . . . . . . 2 . . . . . . . . . . . Time 305 | . . . . . . . . . . . . . 81 . . . . . 76 148 . . . . . . . . . . . Total Part Build Rating 65 | . . . . . . . . . . . . . 33 . . . . . 5 27 . . . . . . . . . . . Parts Repaired 7 | . . . . . . . . 1 . . . . . . . . . . . 3 . . . . . . . 1 . 2 . Time 307 | . . . . . . . . 38 . . . . . . . . . . . 175 . . . . . . . 20 . 74 . Parts Recycled . | . . . . . . . . . . . . . . . . . . . . . . . . . . . . . . . . Recycled Matter . | . . . . . . . . . . . . . . . . . . . . . . . . . . . . . . . . Retrieved Matter . | . . . . . . . . . . . . . . . . . . . . . . . . . . . . . . . . Retrieved Components . | . . . . . . . . . . . . . . . . . . . . . . . . . . . . . . . . Parts Scanalyzed 17 | . . . . . . . . 1 . . . . 4 . . . . . . 6 . . . . 1 . . 5 . . . Part Schematics Acquired 17 | . . . . . . . . 1 . . . . 4 . . . . . . 6 . . . . 1 . . 5 . . . Parts Damaged 1 | . . . . . . . . . . . . . . . . . . . . 1 . . . . . . . . . . . Bothacking | -11 -10 -10 -10 -9 -8 -7 -7 -7 -7 -7 -7 -6 -6 -6 -6 -6 -6 -6 -5 -5 -5 -5 -5 -4 -4 -4 -3 -3 -2 -2 -1 ------------ Run | Scr Mat Min Exi Min Mat Fac Was Fac Low Low Zio Pro Fac Was Fac Low Low Dat Pro Fac Upp Upp War Pro Fac Ext Res Tes Res Qua Acc Used RIF Installer . | . . . . . . . . . . . . . . . . . . . . . . . . . . . . . . . . Robots Hacked . | . . . . . . . . . . . . . . . . . . . . . . . . . . . . . . . . Non-combat . | . . . . . . . . . . . . . . . . . . . . . . . . . . . . . . . . Combat . | . . . . . . . . . . . . . . . . . . . . . . . . . . . . . . . . Robot Hacks Applied . | . . . . . . . . . . . . . . . . . . . . . . . . . . . . . . . . Relay Couplers Released . | . . . . . . . . . . . . . . . . . . . . . . . . . . . . . . . . Fabnet Peak Effective % . | . . . . . . . . . . . . . . . . . . . . . . . . . . . . . . . . Robots Rewired 15 | . . . 4 . . . . . . . . . . . . . . . 11 . . . . . . . . . . . . Allies Hacked . | . . . . . . . . . . . . . . . . . . . . . . . . . . . . . . . . Hacks Repelled . | . . . . . . . . . . . . . . . . . . . . . . . . . . . . . . . . Allies | -11 -10 -10 -10 -9 -8 -7 -7 -7 -7 -7 -7 -6 -6 -6 -6 -6 -6 -6 -5 -5 -5 -5 -5 -4 -4 -4 -3 -3 -2 -2 -1 -------- Run | Scr Mat Min Exi Min Mat Fac Was Fac Low Low Zio Pro Fac Was Fac Low Low Dat Pro Fac Upp Upp War Pro Fac Ext Res Tes Res Qua Acc Total Allies 69 | . 1 . 4 2 . . 20 . . . 5 . 10 . . . . . 12 2 . . . . 1 5 . 1 . . 6 Largest Group 20 | . 1 1 5 7 6 . 20 20 15 8 6 6 6 . . . . . 12 9 . . . . 1 6 1 . . . . Highest-Rated Group 527 | . 10 10 68 112 102 . 527 527 421 232 158 158 99 . . . . . 362 326 . . . . 45 349 159 . . . . Highest-Rated Ally 159 | . 10 10 21 31 31 . 31 31 31 31 31 31 29 . . . . . 96 96 . . . . 45 159 159 . . . . Total Orders 6 | . 2 . . . . . . . . . . . . . . . . . . . . . . . 2 2 . . . . . STAY 3 | . 1 . . . . . . . . . . . . . . . . . . . . . . . 1 1 . . . . . FOLLOW 3 | . 1 . . . . . . . . . . . . . . . . . . . . . . . 1 1 . . . . . Ally Attacks 327 | . . . . 7 20 . . 39 67 22 . 7 28 . . . . . 63 20 . . . . . 51 . . . . 3 Total Damage 6054 | . . . . 119 422 . . 431 1343 294 . 98 295 . . . . . 1390 391 . . . . . 1237 . . . . 34 Kills 55 | . . . . 4 6 . . 9 8 3 . 1 . . . . . . 14 1 . . . . . 9 . . . . . Allies Corrupted 1 | . . . . . . . . . . 1 . . . . . . . . . . . . . . . . . . . . . Allies Melted 1 | . . . . . . . . . . . . 1 . . . . . . . . . . . . . . . . . . . Intel | -11 -10 -10 -10 -9 -8 -7 -7 -7 -7 -7 -7 -6 -6 -6 -6 -6 -6 -6 -5 -5 -5 -5 -5 -4 -4 -4 -3 -3 -2 -2 -1 ------- Run | Scr Mat Min Exi Min Mat Fac Was Fac Low Low Zio Pro Fac Was Fac Low Low Dat Pro Fac Upp Upp War Pro Fac Ext Res Tes Res Qua Acc Robot Analysis Total 5 | . . . . . . . . 1 . . . . . . . . . . . 2 . . . . 1 . . . 1 . . Derelict Logs Recovered 18 | . . . . 1 . . . . 2 1 1 2 . . . 2 3 . 2 . 2 . . 2 . . . . . . . Drone Launches . | . . . . . . . . . . . . . . . . . . . . . . . . . . . . . . . . Drone Recoveries . | . . . . . . . . . . . . . . . . . . . . . . . . . . . . . . . . Exploration | -11 -10 -10 -10 -9 -8 -7 -7 -7 -7 -7 -7 -6 -6 -6 -6 -6 -6 -6 -5 -5 -5 -5 -5 -4 -4 -4 -3 -3 -2 -2 -1 ------------- Run | Scr Mat Min Exi Min Mat Fac Was Fac Low Low Zio Pro Fac Was Fac Low Low Dat Pro Fac Upp Upp War Pro Fac Ext Res Tes Res Qua Acc Turns Passed 15330 | 59 837 219 545 430 1849 25 92 436 392 321 369 804 639 21 247 503 478 23 969 679 381 725 234 572 616 501 270 697 230 879 288 Spaces Moved 28412 | 49 537 162 451 359 1329 40 211 1304 1101 1114 787 1463 1701 81 563 1507 1231 81 1779 1639 1119 1308 793 1321 1257 957 838 1421 620 961 328 Core 23 | 4 . . . . . . . . . . . . . . . . . . . . . . . . . . . . . . 19 Treads 2 | . 2 . . . . . . . . . . . . . . . . . . . . . . . . . . . . . . Legs 104 | . 57 . . . . . . . . . . . . . . . . . . . . . . . . . . . . . 47 Wheels 2829 | 45 478 162 451 359 1329 . . . . . . . . . . . . . . . . . . . . . . . . . 5 Hover 1071 | . . . . . . . . . . . . . . . . . . . . . . . . . . . . . . 814 257 Flight 24383 | . . . . . . 40 211 1304 1101 1114 787 1463 1701 81 563 1507 1231 81 1779 1639 1119 1308 793 1321 1257 957 838 1421 620 147 . Fastest Speed 23 | 50 95 115 115 115 95 23 23 23 23 23 23 23 23 26 26 26 26 26 26 26 26 26 25 25 25 25 25 25 28 28 50 Average Speed 34 | 88 105 115 115 115 102 23 23 23 23 23 23 23 23 26 26 26 26 26 26 26 26 26 25 25 25 25 25 25 28 50 63 Slowest Speed 240 | 95 240 115 115 115 140 23 23 23 23 23 23 23 29 26 26 26 26 26 26 26 26 26 26 25 25 27 27 28 28 126 185 Overloaded Moves . | . . . . . . . . . . . . . . . . . . . . . . . . . . . . . . . . Propulsion Burnouts . | . . . . . . . . . . . . . . . . . . . . . . . . . . . . . . . . Robots Hopped 24 | . . . . . . . . 1 . . . 2 11 . . . . . 1 1 . 1 . . 1 1 2 3 . . . Cave-ins Triggered . | . . . . . . . . . . . . . . . . . . . . . . . . . . . . . . . . Teleports 2 | . . . . . . . . . . . . . . . . . . . . . . . . . . . . . . 2 . Exploration Rate (%) 64 | 3 89 34 89 65 72 2 92 29 91 95 84 92 45 92 13 96 93 68 92 41 97 83 84 80 29 90 14 92 20 74 11 Regions Visited 31 Branch Regions 18 Pre-discovered Areas 9 | . 2 . 1 . 1 . . 1 . . 2 . . . . 1 . 1 . . . . . . . . . . . . . Known Exits Taken 22 | . . . . . 1 . . 1 1 1 1 1 . . 1 1 1 1 1 1 1 1 1 1 1 1 1 1 1 1 . Unknown Exits Taken 5 | 1 1 1 1 1 . . . . . . . . . . . . . . . . . . . . . . . . . . . Scrap Searched 50 | . . . . 1 . . . . 5 12 3 5 . . . 9 2 . 4 . 5 4 . . . . . . . . . Spaces Dug 333 | . . . . . 6 . . 7 8 15 . 17 32 . 17 21 14 . 8 19 6 20 2 39 30 5 7 25 9 22 4 Terrain Destroyed 950 | . . . . . 6 . . 7 8 15 . 17 32 . 17 21 14 . 16 19 6 37 2 39 33 79 7 25 9 50 491 Melee 277 | . . . . . 6 . . 7 8 15 . 17 32 . 17 21 14 . 8 18 6 20 2 24 25 2 7 15 9 4 . Projectile 65 | . . . . . . . . . . . . . . . . . . . . 1 . . . 15 8 5 . 10 . 22 4 AOE 584 | . . . . . . . . . . . . . . . . . . . 8 . . 17 . . . 72 . . . . 487 Terrain Rammed . | . . . . . . . . . . . . . . . . . . . . . . . . . . . . . . . . Walls Destroyed . | . . . . . . . . . . . . . . . . . . . . . . . . . . . . . . . . Machines Disabled . | . . . . . . . . . . . . . . . . . . . . . . . . . . . . . . . . Actions | -11 -10 -10 -10 -9 -8 -7 -7 -7 -7 -7 -7 -6 -6 -6 -6 -6 -6 -6 -5 -5 -5 -5 -5 -4 -4 -4 -3 -3 -2 -2 -1 --------- Run | Scr Mat Min Exi Min Mat Fac Was Fac Low Low Zio Pro Fac Was Fac Low Low Dat Pro Fac Upp Upp War Pro Fac Ext Res Tes Res Qua Acc Total 32761 | 61 690 175 470 374 1643 57 254 1416 1224 1143 974 1887 1854 80 622 1571 1358 81 2239 1848 1196 1637 820 1507 1502 1174 879 1709 653 1271 392 Wait 2948 | 2 52 . 1 7 113 . 42 50 110 11 182 405 50 . 36 36 113 . 351 145 69 299 8 148 186 134 6 202 1 164 25 Move 28336 | 48 536 161 450 358 1328 40 210 1301 1100 1113 786 1459 1679 80 562 1506 1230 80 1776 1636 1118 1305 792 1320 1254 954 833 1414 619 961 327 Hop 23 | . . . . . . . . 1 . . . 1 11 . . . . . 1 1 . 1 . . 1 1 2 3 . . . Pick Up 170 | 5 12 1 3 2 31 2 1 8 2 . 1 1 16 . . 2 . . 1 13 1 1 1 . 7 8 2 15 3 22 9 Fast Attach 87 | 6 8 . 1 . 4 . . . . . 2 . 7 . . . . . 3 1 . . 6 . . 6 8 6 9 13 7 Attach 69 | . 3 . . . 8 5 . . 1 . . . 8 . . 1 . . . 8 . . . . 2 5 . 2 1 16 9 Detach 18 | . 1 . . . 1 . . . 1 . 1 . 1 . . 1 . . . 2 . . 1 . . 1 1 2 1 4 . Swap 154 | . 13 3 2 3 33 4 . 1 1 3 . . 18 . 6 2 1 1 11 11 1 5 2 . 5 3 5 16 . 3 1 Drop 180 | . 9 1 1 3 33 6 1 7 1 . 2 1 18 . . 1 . . 4 9 1 1 8 . 8 5 11 17 5 22 5 Fire 237 | . 56 9 . 1 50 . . . . . . . . . . . . . 3 1 . 1 . 15 8 14 . 12 . 62 5 Melee 402 | . . . 12 . 42 . . 12 8 16 . 20 35 . 18 22 14 . 17 21 6 24 2 24 31 25 11 20 14 4 4 Ram . | . . . . . . . . . . . . . . . . . . . . . . . . . . . . . . . . Kick . | . . . . . . . . . . . . . . . . . . . . . . . . . . . . . . . . Crush . | . . . . . . . . . . . . . . . . . . . . . . . . . . . . . . . . Escape Stasis 65 | . . . . . . . . 36 . . . . 11 . . . . . . . . . . . . 18 . . . . . Rewire 68 | . . . . . . . . . . . . . . . . . . . 68 . . . . . . . . . . . . Trap 4 | . . . . . . . . . . . . . . . . . . . 4 . . . . . . . . . . . . Miscellaneous . | . . . . . . . . . . . . . . . . . . . . . . . . . . . . . . . . Route ------- -11/Scrapyard -10/Materials (discovered 3 exits: [*Mat x2] / [*Min]) -10/Mines -10/Exiles -9/Mines -8/Materials (discovered 2 exits: *Fac x2) -7/Factory -7/Waste -7/Factory (discovered 5 exits: *Fac / *Sto x2 / *Low x2) -7/Lower Caves -7/Lower Caves (discovered 2 exits: *Fac / *Zio) -7/Zion -6/Proximity Caves -6/Factory (discovered 3 exits: *Fac x2 / *Low) -6/Waste -6/Factory (discovered 2 exits: *Low x2) -6/Lower Caves -6/Lower Caves (discovered 2 exits: *Fac / *Dat) -6/Data Miner -5/Proximity Caves -5/Factory (discovered 2 exits: *Upp x2) -5/Upper Caves -5/Upper Caves (discovered 2 exits: *Fac / *War) -5/Warlord -4/Proximity Caves -4/Factory (discovered 6 exits: Res / *Upp x2 / *Ext x2 / Arm) -4/Extension (discovered 3 exits: *Res x2 / *Cet) -3/Research (discovered 3 exits: Res / *Tes x2) -3/Testing -2/Research (discovered 2 exits: *Qua x2) -2/Quarantine -1/Access To Fleet Rendezvous History --------- Turn | Location | Event 19 | -11/Scrapyard | Discovered new exit (range 15) 60 | -11/Scrapyard | Entered Materials 130 | -10/Materials | Discovered new exit (range 10) 318 | -10/Materials | Build established: Mutant 597 | -10/Materials | Lost 4 parts (2n1u1w) 620 | -10/Materials | Discovered new exit (range 14) 771 | -10/Materials | Discovered new exit (range 13) 897 | -10/Materials | Entered Mines 897 | -10/Mines | Accompanied by 1 ally 912 | -10/Mines | Core integrity fell below 50% 921 | -10/Mines | Met a Derelict bent on vengeance 1111 | -10/Mines | Deemed a non-threat by the Exiles lab entrance 1111 | -10/Mines | Discovered new exit (range 5) 1116 | -10/Mines | Entered Exiles 1116 | -10/Exiles | Found Exiles lab destroyed 1116 | -10/Exiles | Accompanied by 1 ally 1432 | -10/Exiles | Learned location of Zion (-7) 1646 | -10/Exiles | Discovered new exit (range 14) 1661 | -10/Exiles | Entered Mines 1661 | -9/Mines | Accompanied by 5 allies 1703 | -9/Mines | Build established: Commander-Mutant 1716 | -9/Mines | Learned 2 Materials zone layouts 1849 | -9/Mines | Assembled infested the area 1854 | -9/Mines | Assisted by a Guerilla fighting off Assembled 2002 | -9/Mines | Discovered new exit (range 13) 2091 | -9/Mines | Entered Materials 2091 | -8/Materials | Accompanied by 6 allies 2091 | -8/Materials | Evolved 4 slots: Propulsion x2, Utility x2 2092 | -8/Materials | Identified exit to Factory 2096 | -8/Materials | Led the pair of lost Derelicts to an unsafe place 2596 | -8/Materials | Build established: Mutant 2693 | -8/Materials | Discovered exit to Factory (range 15) 3106 | -8/Materials | Build established: Scavenger-Mutant 3940 | -8/Materials | Entered Factory 3940 | -7/Factory | Evolved 2 slots: Propulsion x1, Utility x1 3965 | -7/Factory | Sucked down chute 3965 | -7/Factory | Entered Waste 3966 | -7/Waste | Joined by Warlord forces that had cleared the area 4006 | -7/Waste | Discovered new exit (range 16) 4017 | -7/Waste | Identified exit to Factory 4057 | -7/Waste | Entered Factory 4057 | -7/Factory | Accompanied by 20 allies 4085 | -7/Factory | Discovered new exit (range 2) 4086 | -7/Factory | Identified exit to Lower Caves 4125 | -7/Factory | Repaired Imp. Propulsion Shielding? 4140 | -7/Factory | Discovered new exit (range 15) 4143 | -7/Factory | Identified exit to Storage 4341 | -7/Factory | Discovered new exit (range 15) 4353 | -7/Factory | Identified exit to Factory 4372 | -7/Factory | Build established: Hacker-Sprinter 4493 | -7/Factory | Entered Lower Caves 4493 | -7/Lower Caves | Accompanied by 15 allies 4555 | -7/Lower Caves | Spotted B-75 Beast 4655 | -7/Lower Caves | Encountered a Warlord checkpoint 4665 | -7/Lower Caves | Learned Factory garrison access intel 4776 | -7/Lower Caves | Discovered new exit (range 4) 4777 | -7/Lower Caves | Identified exit to Lower Caves 4885 | -7/Lower Caves | Entered another Lower Caves area 4885 | -7/Lower Caves | Accompanied by 9 allies 4949 | -7/Lower Caves | Encountered a Warlord checkpoint 4949 | -7/Lower Caves | Discovered exit to Factory (range 6) 4959 | -7/Lower Caves | Build established: Scout 5140 | -7/Lower Caves | Learned 4 Factory zone layouts 5150 | -7/Lower Caves | Discovered new exit (range 9) 5152 | -7/Lower Caves | Identified exit to Zion 5206 | -7/Lower Caves | Entered Zion 5206 | -7/Zion | Accompanied by 1 ally 5230 | -7/Zion | Received a visual enhancement algorithm 5264 | -7/Zion | Learned Factory emergency access door positions 5269 | -7/Zion | Gained Derelict followers 5273 | -7/Zion | Learned location of Recycling (-7) 5295 | -7/Zion | Identified exit to Proximity Caves 5334 | -7/Zion | Given the Hacking Drone Bay 5348 | -7/Zion | Learned location of Quarantine (-2) 5354 | -7/Zion | Found Prototype Special Weapon 5575 | -7/Zion | Entered Proximity Caves 5575 | -6/Proximity Caves | Accompanied by 6 allies 5877 | -6/Proximity Caves | Received a Behemoth hack from an annoying Tinkerer 6321 | -6/Proximity Caves | Learned Factory emergency access door positions 6379 | -6/Proximity Caves | Entered Factory 6379 | -6/Factory | Accompanied by 4 allies 6379 | -6/Factory | Evolved 2 slots: Utility x2 6382 | -6/Factory | Loaded intel: 4 garrison access locations 6529 | -6/Factory | Discovered new exit (range 16) 6593 | -6/Factory | Discovered new exit (range 19) 6607 | -6/Factory | Identified RU-N14's Throwing Claymores 6759 | -6/Factory | Build established: Hacker-Sprinter 6761 | -6/Factory | Fabricated E-15 Imp? 6773 | -6/Factory | Spotted B-75 Beast 6789 | -6/Factory | Fabricated S-27 Virus? 6893 | -6/Factory | Fabricated Impulse Thruster (x2) 6901 | -6/Factory | Fabricated Impulse Thruster? 6921 | -6/Factory | Fabricated Imp. Hacking Suite (x1) 6974 | -6/Factory | Discovered new exit (range 11) 6995 | -6/Factory | Cargo convoy interrupted 7010 | -6/Factory | Central database locked down 7016 | -6/Factory | Identified exit to Factory 7018 | -6/Factory | Manually triggered Chute Trap 7018 | -6/Factory | Sucked down chute 7018 | -6/Factory | Entered Waste 7021 | -6/Waste | Spotted C-40 Crusher 7022 | -6/Waste | Spotted C-40 Crusher 7027 | -6/Waste | Spotted C-40 Crusher 7029 | -6/Waste | Spotted C-40 Crusher 7030 | -6/Waste | Spotted C-40 Crusher 7032 | -6/Waste | Spotted C-40 Crusher 7037 | -6/Waste | Discovered new exit (range 11) 7039 | -6/Waste | Identified exit to Factory 7039 | -6/Waste | Entered Factory 7113 | -6/Factory | Identified exit to Lower Caves 7286 | -6/Factory | Entered Lower Caves 7287 | -6/Lower Caves | Encountered a Warlord checkpoint 7304 | -6/Lower Caves | Learned Factory emergency access door positions 7579 | -6/Lower Caves | Build established: Hacker-Scout 7671 | -6/Lower Caves | Discovered new exit (range 6) 7672 | -6/Lower Caves | Identified exit to Lower Caves 7789 | -6/Lower Caves | Entered another Lower Caves area 7797 | -6/Lower Caves | Encountered a Warlord checkpoint 7807 | -6/Lower Caves | Learned Factory stockpile data 7818 | -6/Lower Caves | Discovered exit to Factory (range 10) 8169 | -6/Lower Caves | Identified exit to Data Miner 8267 | -6/Lower Caves | Entered Data Miner 8267 | -6/Data Miner | Discovered new exit (range 6) 8270 | -6/Data Miner | Identified exit to Proximity Caves 8274 | -6/Data Miner | Met Data Miner 8278 | -6/Data Miner | Learned location of Section 7 (-2) 8278 | -6/Data Miner | Acquired the access code to Warlord's prototype stash 8283 | -6/Data Miner | Received God Mode back door access code from Data Miner 8290 | -6/Data Miner | Entered Proximity Caves 8383 | -5/Proximity Caves | Escorted by Enhanced Grunt 8525 | -5/Proximity Caves | Learned Factory terminal intel 8537 | -5/Proximity Caves | Spotted B-75 Beast 8700 | -5/Proximity Caves | Learned Factory stockpile data 8949 | -5/Proximity Caves | Snuck into a huge 0b10 base via the rear entrance 8994 | -5/Proximity Caves | Derelicts attacked a huge 0b10 base 9036 | -5/Proximity Caves | Discovered exit to Factory (range 8) 9189 | -5/Proximity Caves | Fabricated Lgt. Regenerative Plating (x1) 9259 | -5/Proximity Caves | Entered Factory 9259 | -5/Factory | Accompanied by 9 allies 9259 | -5/Factory | Evolved 2 slots: Utility x2 9260 | -5/Factory | Identified exit to Upper Caves 9263 | -5/Factory | Loaded intel: 26 terminal locations 9349 | -5/Factory | Fabricated Com. HERF Cannon (x1) 9419 | -5/Factory | Repaired Adv. Sensor Array 9598 | -5/Factory | Incoming investigation squad redirected 9607 | -5/Factory | Found Prototype Launcher 9612 | -5/Factory | Identified Scatter Rocket Array 9621 | -5/Factory | Fabricated Adv. Hacking Suite (x1) 9748 | -5/Factory | Repaired Broken Cld. Nuclear Pulse Thruster 9860 | -5/Factory | Fabricated Lrn. Sensor Array? 9864 | -5/Factory | Repaired Great Maul? 9922 | -5/Factory | Incoming investigation squad redirected 9935 | -5/Factory | Fabricated Adv. System Shield (x1) 9938 | -5/Factory | Entered Upper Caves 9981 | -5/Upper Caves | Encountered a Warlord checkpoint 10071 | -5/Upper Caves | Learned 4 Factory zone layouts 10256 | -5/Upper Caves | Spotted B-75 Beast 10277 | -5/Upper Caves | Discovered new exit (range 11) 10279 | -5/Upper Caves | Identified exit to Upper Caves 10298 | -5/Upper Caves | Learned Factory garrison access intel 10319 | -5/Upper Caves | Entered another Upper Caves area 10341 | -5/Upper Caves | Discovered new exit (range 6) 10342 | -5/Upper Caves | Identified exit to Factory 10372 | -5/Upper Caves | Found Alien Artifact 11019 | -5/Upper Caves | Discovered new exit (range 15) 11026 | -5/Upper Caves | Identified exit to Warlord 11044 | -5/Upper Caves | Entered Warlord 11072 | -5/Warlord | Received a Watcher feed algorithm from an ecstatic Tinkerer 11198 | -5/Warlord | Found Prototype Processor 11198 | -5/Warlord | Identified Spectral Analyzer 11210 | -5/Warlord | Warlord's base attacked by MAIN.C 11247 | -5/Warlord | Opened side exit 11277 | -5/Warlord | Discovered new exit (range 8) 11278 | -5/Warlord | Identified exit to Proximity Caves 11278 | -5/Warlord | Entered Proximity Caves 11326 | -4/Proximity Caves | Attracted the attention of an 0b10 checkpoint 11474 | -4/Proximity Caves | Learned 4 Research zone layouts 11513 | -4/Proximity Caves | Discovered exit to Factory (range 13) 11850 | -4/Proximity Caves | Entered Factory 11850 | -4/Factory | Evolved 2 slots: Power x1, Utility x1 11851 | -4/Factory | Identified exit to Armory 11852 | -4/Factory | Identified exit to Research 11854 | -4/Factory | Loaded intel: 4 garrison access locations 11882 | -4/Factory | Discovered new exit (range 19) 11893 | -4/Factory | Identified Dimensional Node Initializer 11897 | -4/Factory | Spotted B-86 Titan 12066 | -4/Factory | Identified exit to Upper Caves 12066 | -4/Factory | Identified exit to Extension 12166 | -4/Factory | Build established: Wizard-Scout 12466 | -4/Factory | Entered Extension 12466 | -4/Extension | Accompanied by 1 ally 12636 | -4/Extension | Energy Cycler disabled 12636 | -4/Extension | Rescued a captive Derelict 12637 | -4/Extension | Rescued a captive Derelict 12637 | -4/Extension | Rescued a captive Derelict 12674 | -4/Extension | Spotted B-86 Titan 12676 | -4/Extension | Spotted B-86 Titan 12680 | -4/Extension | Discovered exit to Research (range 13) 12684 | -4/Extension | Rescued A7 12685 | -4/Extension | Destroyed B-86 Titan 12701 | -4/Extension | Allies destroyed B-86 Titan 12777 | -4/Extension | Destroyed 11 combat bots 12783 | -4/Extension | Lost 7 parts (3p1n3u) 12951 | -4/Extension | Discovered exit to Research (range 10) 12951 | -4/Extension | Discovered new exit (range 6) 12953 | -4/Extension | Identified exit to Cetus 12967 | -4/Extension | Entered Research 12967 | -3/Research | Accompanied by 1 ally (A7) 12967 | -3/Research | Evolved 2 slots: Propulsion x1, Utility x1 12968 | -3/Research | Identified exit to Research 13011 | -3/Research | Build established: Hacker-Scout 13117 | -3/Research | Identified exit to Testing 13237 | -3/Research | Entered Testing 13238 | -3/Testing | Spotted PH-7TG2CYQNC0 13248 | -3/Testing | Found Prototype Launcher 13285 | -3/Testing | Repaired Lrn. Sensor Array 13288 | -3/Testing | Spotted 3V-IEO(K) 13288 | -3/Testing | Spotted B7-66E(K) 13288 | -3/Testing | Spotted XX-NUE(K) 13315 | -3/Testing | Discovered exit to Research (range 24) 13333 | -3/Testing | Found Prototype Device 13379 | -3/Testing | Build established: Wizard-Scout 13418 | -3/Testing | Found Prototype Ballistic Cannon 13418 | -3/Testing | Identified Perforator 13738 | -3/Testing | Spotted Alpha 7 13780 | -3/Testing | Spotted Striker 13808 | -3/Testing | Identified Z-bomb Delivery System 13808 | -3/Testing | Identified Exp. Hardlight Generator 13884 | -3/Testing | Lost 3 parts (1n1u1w) 13911 | -3/Testing | Scanned by Researcher 13934 | -3/Testing | Entered Research 13934 | -2/Research | Evolved 2 slots: Utility x2 14041 | -2/Research | Identified exit to Quarantine 14094 | -2/Research | Found Prototype Processor 14094 | -2/Research | Identified Exp. Signal Interpreter 14164 | -2/Research | Entered Quarantine 14351 | -2/Quarantine | Lost 4 parts (1n2u1w) 14378 | -2/Quarantine | Identified exit to Access 14385 | -2/Quarantine | Found Alien Artifact 14447 | -2/Quarantine | Repaired Lrn. Sensor Array 14482 | -2/Quarantine | Identified Transdimensional Reconstructor 14482 | -2/Quarantine | Warped through subspace 14502 | -2/Quarantine | Found Alien Artifact 14504 | -2/Quarantine | Found Alien Artifact 14626 | -2/Quarantine | System corruption reached 10% 14655 | -2/Quarantine | Found Alien Artifact 14661 | -2/Quarantine | Spotted Alpha 7 14664 | -2/Quarantine | First assault squad dispatched 14666 | -2/Quarantine | Identified Hpw. Transdimensional Reconstructor (x2) 14666 | -2/Quarantine | Identified Phase Redirector 14674 | -2/Quarantine | Destroyed Alpha 7 14679 | -2/Quarantine | Found Prototype Ballistic Gun 14683 | -2/Quarantine | Incoming assault squad redirected 14695 | -2/Quarantine | Found Alien Launcher 14697 | -2/Quarantine | Identified Sigix Terminator 14777 | -2/Quarantine | Repaired Com. Particle Reactor 14799 | -2/Quarantine | Found Alien Artifact 14812 | -2/Quarantine | Found Alien Impact Weapon 14828 | -2/Quarantine | Build established: Hacker-Mutant 14829 | -2/Quarantine | Identified Multirail 14834 | -2/Quarantine | Found Alien Artifact 14949 | -2/Quarantine | Warped through subspace 14979 | -2/Quarantine | Lost 4 parts (1p3u) 15043 | -2/Quarantine | Entered Access 15043 | -1/Access | Evolved 2 slots: Utility x1, Weapon x1 15073 | -1/Access | Identified Core Stripper 15229 | -1/Access | Spotted B-99 Colossus 15289 | -1/Access | Lost 13 parts (2p4n5u2w) 15289 | -1/Access | Spotted B-99 Colossus 15289 | -1/Access | Spotted B-99 Colossus 15290 | -1/Access | Spotted B-99 Colossus 15311 | -1/Access | Fired Sigix Terminator 15311 | -1/Access | Destroyed B-99 Colossus 15311 | -1/Access | Destroyed B-99 Colossus 15313 | -1/Access | Identified Core Reset Matrix 15313 | -1/Access | Identified Subatomic Replicator 15313 | -1/Access | Used Core Reset Matrix 15317 | -1/Access | Core integrity fell below 50% 15318 | -1/Access | Discovered new exit (range 22) 15326 | -1/Access | Emitted hypermatrix ping 15331 | -1/Access | Assembled emerged from beneath the floor 15331 | *** | Heading to fleet! Last Messages --------------- 15316_ Adv. Melee Analysis Suite destroyed. 15316_ Critical hit (Blast). 15316_ Knocked back. 15316_ Penetrated by Slug. 15317_ U-05 Engineer lays Concrete. 15317_ Acquired 7 matter. 15318_ Penetrated by Slug. 15318_ EXIT=FOUND 15319_ U-05 Engineer lays Concrete. 15322_ Penetrated by Slug. 15322_ Dropped Com. Linear Accelerator. 15323_ Acquired 8 matter. 15323_ U-05 Engineer lays Concrete. 15325_ Penetrated by Slug. 15325_ U-05 Engineer lays Concrete. 15325_ R-10 Processor collects Unknown Treads. 15326_ Emitted hypermatrix ping. 15327_ Detected hypermatrix ping. 15327_ U-05 Engineer lays Concrete. 15331_ Assembled emerge from beneath the floor. Map ----- +----------------------------------------------------+ | ?????????????????????????????????????????????????? | | ?????????????????????????????????????????????????? | | ?????????????????????????????????????????????????? | | ?????????#############???????????????????????????? | | ????????# ! ??????????????????????????? | | ????????# #?????????????????????????? | | ????????# #?????????????????????????? | | ????????# # ????????????????????????? | | ????????# " /?????????????????????????? | | ??????### ??????????????????????????? | | #######";;;;;;;;;;;;"#???????????????????????????? | | ; ###????####+###?????????????? | | ; #???? ??????????????? | | ; #???? ???????????????? | | ; #####;;;;#????????????????? | | ; ## # p ##???????????????? | | ; ## #???????????????? | | % ; # #???????????????? | | % ; #???????????????? | | %; ;;;#???????#????????? | | ;;;;;;;;;;;;;;;;;;;;; ####### #????????? | | ] ; u #????????? | | ; #????????? | | """;%; % a #????????? | | a #????????? | | a "@ #????????? | | a a "" #????????? | | a #????????? | | ;;; #????????? | | w ; ; """ """ #????????? | | ; ; T""" #????????? | | ; ;;;;;;;;;;;;;;;;;;;;; ;;;;### ?????????? | | ; BB ;;; #?????????????? | | ;;BB #?????????????? | | ; ##?????????????? | | ; #??????????????? | | * ;;; ##??????????????? | | ;;;;;;;;;;;;;;;;;;;;;;;;;##???????????????? | | ???????????????? | | ??????????????? | | #""""""";;;;;;;;;;;;;;;;;;;;;;;;##+#?????????????? | | "" ; ; ????????????????? | | "" ; ; ???????????????? | | "" "" ; ## ??????????????? | | ?" #" ; ####? ??????????????? | | ?" ## ; ###???? ??????????????? | | ??? ?# "" ;####??????? ????????????????? | | ???????? """"" #????????????????????????????? | | ????????? ?????" ?????????????????????????????? | | ?????????????????????????????????????????????????? | +----------------------------------------------------+ Best States ------------- Heat Dissipation 152 Coolant Potential 120 Energy Generation 49 Energy Capacity 700 Matter Stores 300 Matter Capacity 300 Sight Range 24 Robot Scan Range 18 Terrain Scan Range 14 Terrain Scan Density 85 ECM Strength 2 Jamming Range 16 Power Amplification 40 Additional Mass Support 12 Armor Coverage 225 Resistance: KI 20 Core Shielding 20 Power Shielding 66 Propulsion Shielding 90 Weapon Shielding 66 Melee Speed Boost 30 Evasion (%) 65 Melee Accuracy 16 Recoil Reduction 2 Offensive Hacking 51 Defensive Hacking 28 Authchip Count 3 Item Schematics ----------------- None Robot Schematics ------------------ None Fabricated ------------ E-15 Imp | x2 | -6/Factory | Preloaded S-27 Virus | x4 | -6/Factory | Preloaded Impulse Thruster | x2 | -6/Factory | Authchip Impulse Thruster | x2 | -6/Factory Imp. Hacking Suite | x1 | -6/Factory Lgt. Regenerative Plating | x1 | -5/Proximity Caves Com. HERF Cannon | x1 | -5/Factory | Authchip Adv. Hacking Suite | x1 | -5/Factory Lrn. Sensor Array | x1 | -5/Factory | Authchip Adv. System Shield | x1 | -5/Factory Alien Tech Used ----------------- Transdimensional Reconstructor Sigix Terminator Phase Redirector High-powered Transdimensional Reconstructor Core Stripper Core Reset Matrix Achievements -------------- None Challenges ------------ None Game ------ Seed TargetingSlugBlade Manual? 0 Play Time 05:43:05 Cumulative 332.4 hours Start 2022.06.09 @ 21:30:25 End 2022.06.10 @ 03:32:29 Sessions 3 Manual Loads 0 Difficulty Rogue Special Mode None Game No. 91 Rogue 91 Adventurer 0 Explorer 0 Win Type 2 Total 17 Types 14/0/3/0/0/0/0/0/0 Lore% 89 Gallery% 90 Achievement% 74 Wizard Run 0 Options --------- ASCII 0 Keyboard 0 Movement Numpad Keybinds 0 Fullscreen 1 Font 14/SmallcapsGlow Map View 84x54 Tactical HUD 1 Map Filters NONE Filters NONE Steam 1 RUN: 789c913c-a3f9-48f5-a117-180c8491b9a1